bitfinex/quotes_SOLUSD_20240825
["timestamp","ask_amount","ask_price","bid_price","bid_amount"]
[1724605624479,6.3495,159.41,159.35,1.57064661]
[1724605625551,6.3495,159.41,159.32,20.0]
[1724605625755,6.3495,159.41,159.33,1.57063832]
[1724605625980,6.3495,159.41,159.34,1.57063832]
[1724605626160,6.3495,159.41,159.33,1.57063832]
[1724605626481,6.3495,159.41,159.34,1.57063832]
[1724605626689,6.3495,159.41,159.33,1.57063832]
[1724605627091,6.3495,159.41,159.34,1.57063832]
[1724605627387,16.5987,159.37,159.26,22.593]
[1724605627585,16.5987,159.37,159.27,1.57099456]
[1724605627889,16.5987,159.37,159.28,1.57099456]
[1724605628067,16.5987,159.37,159.29,1.57099456]
[1724605628383,16.5987,159.37,159.3,1.57099456]
[1724605628560,16.5987,159.37,159.27,1.57099456]
[1724605628752,16.5987,159.37,159.28,1.57099456]
[1724605628952,16.5987,159.37,159.29,1.57099456]
[1724605629263,16.5987,159.37,159.3,1.57099456]
[1724605629473,16.5987,159.37,159.29,1.57101869]
[1724605629863,16.5987,159.37,159.3,1.57101869]
[1724605630062,16.5987,159.37,159.29,1.57101869]
[1724605630272,16.5987,159.37,159.3,1.57101869]
[1724605630466,18.1677939,159.37,159.29,1.57101869]
[1724605630659,45.0,159.36,159.29,1.57101869]
[1724605630862,45.0,159.36,159.28,1.57101869]
[1724605631080,45.0,159.36,159.29,1.57101869]
[1724605631286,22.8734,159.37,159.25,1.57101869]
[1724605631469,22.8734,159.37,159.26,1.57101869]
[1724605631674,22.8734,159.37,159.27,1.57101869]
[1724605631875,22.8734,159.37,159.28,1.57101869]
[1724605632193,22.8734,159.37,159.29,1.57101869]
[1724605632372,16.5987,159.37,159.3,1.57101869]
[1724605632572,16.5987,159.37,159.24,1.57101869]
[1724605632891,16.5987,159.37,159.25,1.57105331]
[1724605633069,16.5987,159.37,159.26,1.57105331]
[1724605633389,16.5987,159.37,159.27,1.57105331]
[1724605633596,16.5987,159.37,159.28,1.57105331]
[1724605633794,16.5987,159.37,159.29,1.57105331]
[1724605633966,16.5987,159.37,159.3,1.57105331]
[1724605634294,16.5987,159.37,159.28,1.57105331]
[1724605634592,16.5987,159.37,159.29,1.57105331]
[1724605634793,16.5987,159.37,159.3,1.57105331]
[1724605634966,16.5987,159.37,159.28,1.57105331]
[1724605635166,16.5987,159.37,159.29,1.57105331]
[1724605635362,16.5987,159.37,159.3,1.57105331]
[1724605635676,16.5987,159.37,159.28,1.57105331]
[1724605635873,16.5987,159.37,159.28,1.57107399]
[1724605636195,16.5987,159.37,159.29,1.57107399]
[1724605636399,16.5987,159.37,159.3,1.57107399]
[1724605636585,22.8735,159.37,159.28,1.57107399]
[1724605636786,12.5294,159.35,159.28,1.57107399]
[1724605637103,6.2763,159.33,159.24,1.57107399]
[1724605637396,45.0,159.32,159.25,1.57107399]
[1724605637595,45.0,159.32,159.26,1.57107399]
[1724605637779,45.0,159.32,159.21,1.57107399]
[1724605637979,6.2763,159.33,159.22,1.57107399]
[1724605638169,6.2763,159.33,159.23,1.57107399]
[1724605638501,6.2763,159.33,159.24,1.57107399]
[1724605638676,6.2763,159.33,159.25,1.57107399]
[1724605638874,6.2763,159.33,159.26,1.57139027]
[1724605639099,6.2763,159.33,159.22,1.57139027]
[1724605639272,6.2763,159.33,159.23,1.57139027]
[1724605639480,6.2763,159.33,159.24,1.57139027]
[1724605639672,6.2759,159.34,159.25,1.57139027]
[1724605639990,6.2759,159.34,159.26,1.57139027]
[1724605640174,6.2759,159.34,159.24,1.57139027]
[1724605640382,6.2759,159.34,159.25,1.57139027]
[1724605640698,6.2759,159.34,159.26,1.57139027]
[1724605640892,6.2759,159.34,159.24,1.57139027]
[1724605641105,6.2759,159.34,159.25,1.57139027]
[1724605641310,6.2759,159.34,159.26,1.57139027]
[1724605641600,6.2759,159.34,159.24,1.57139027]
[1724605641894,6.2759,159.34,159.25,1.57139027]
[1724605642102,6.2759,159.34,159.26,1.57139027]
[1724605642266,6.2759,159.34,159.24,1.57139027]
[1724605642469,6.2759,159.34,159.25,1.57139027]
[1724605642680,6.2759,159.34,159.26,1.57139027]
[1724605642901,6.2759,159.34,159.24,1.57139027]
[1724605643077,6.2759,159.34,159.25,1.57139027]
[1724605643271,6.2759,159.34,159.26,1.57139027]
[1724605643503,6.2538,159.35,159.27,1.57139027]
[1724605643802,6.2538,159.35,159.24,1.57139027]
[1724605644002,6.2538,159.35,159.25,1.57139027]
[1724605644292,6.2538,159.35,159.26,1.57139027]
[1724605647094,6.2538,159.35,159.27,1.57139027]
[1724605647297,6.2538,159.35,159.26,1.57139027]
[1724605647494,6.2538,159.35,159.27,1.57139027]
[1724605647801,6.2538,159.35,159.26,1.57139027]
[1724605648005,6.2538,159.35,159.27,1.57139027]
[1724605648178,6.2538,159.35,159.26,1.57139027]
[1724605648378,6.2538,159.35,159.27,1.57139027]
[1724605648682,6.2538,159.35,159.26,1.57139027]
[1724605648884,6.2538,159.35,159.27,1.57139027]
[1724605649070,6.2538,159.35,159.28,1.57139027]
[1724605649403,16.5987,159.37,159.29,1.57139027]
[1724605649579,16.5987,159.37,159.3,1.57139027]
[1724605649779,16.5987,159.37,159.31,1.57139027]
[1724605649979,16.5987,159.37,159.27,20.0]
[1724605649980,16.5987,159.37,159.28,1.57139027]
[1724605650186,6.524,159.39,159.29,1.57139027]
[1724605650376,6.524,159.39,159.3,1.57139027]
[1724605650708,6.524,159.39,159.31,1.57139027]
[1724605650709,12.7981,159.39,159.31,1.57139027]
[1724605651006,12.7981,159.39,159.3,1.57139027]
[1724605651304,12.7981,159.39,159.31,1.57139027]
[1724605651606,45.0,159.38,159.27,20.0]
[1724605651807,45.0,159.38,159.28,1.57104687]
[1724605652009,45.0,159.38,159.27,20.0]
[1724605652010,45.0,159.38,159.29,1.57104687]
[1724605652184,45.0,159.38,159.3,1.57104687]
[1724605652504,45.0,159.38,159.31,1.57104687]
[1724605652703,45.0,159.38,159.32,1.57104687]
[1724605652899,45.0,159.38,159.28,1.57104687]
[1724605653105,45.0,159.38,159.29,1.57104687]
[1724605653313,45.0,159.38,159.27,20.0]
[1724605653314,45.0,159.38,159.3,1.57104687]
[1724605653483,45.0,159.38,159.31,1.57104687]
[1724605653678,45.0,159.38,159.32,1.57104687]
[1724605654005,45.0,159.38,159.27,20.0]
[1724605654182,45.0,159.38,159.28,1.57104162]
[1724605654380,45.0,159.38,159.27,20.0]
[1724605654677,45.0,159.38,159.28,1.57104244]
[1724605654876,45.0,159.38,159.29,1.57104244]
[1724605655077,45.0,159.38,159.3,1.57104244]
[1724605655277,45.0,159.38,159.31,1.57104244]
[1724605655504,45.0,159.38,159.32,1.57104244]
[1724605655707,45.0,159.38,159.27,20.0]
[1724605656008,45.0,159.38,159.28,1.57104264]
[1724605656210,45.0,159.38,159.29,1.57104264]
[1724605656383,45.0,159.38,159.3,1.57104264]
[1724605656581,45.0,159.38,159.31,1.57104264]
[1724605656793,45.0,159.38,159.32,1.57104264]
[1724605657011,45.0,159.38,159.27,20.0]
[1724605657187,45.0,159.38,159.28,1.57103632]
[1724605657393,45.0,159.38,159.29,1.57103632]
[1724605657611,45.0,159.38,159.27,20.0]
[1724605657612,6.2748,159.37,159.3,1.57103632]
[1724605657900,45.0,159.36,159.27,20.0]
[1724605658110,31.84835631,159.35,159.28,1.5712058]
[1724605658300,66.5059,159.34,159.22,15.6627]
[1724605658604,7.84586647,159.33,159.23,1.5714206]
[1724605658817,45.0,159.32,159.24,1.5714206]
[1724605659103,45.0,159.32,159.25,1.5714206]
[1724605659311,45.0,159.32,159.26,1.5714206]
[1724605659510,45.0,159.32,159.27,1.5714206]
[1724605659686,45.0,159.32,159.22,15.6627]
[1724605659884,45.0,159.32,159.23,1.57152794]
[1724605660092,45.0,159.32,159.24,1.57152794]
[1724605660290,51.524,159.32,159.25,1.57152794]
[1724605660494,51.524,159.32,159.26,1.57152794]
[1724605660693,1.56966677,159.31,159.23,20.0]
[1724605660900,1.56966677,159.31,159.24,1.57160895]
[1724605661095,51.524,159.32,159.25,1.57160895]
[1724605661312,51.524,159.32,159.26,1.57160895]
[1724605661608,51.524,159.32,159.27,1.57160895]
[1724605661785,51.524,159.32,159.23,20.0]
[1724605661997,53.09366646,159.32,159.24,1.5715743]
[1724605662210,53.09366646,159.32,159.25,1.5715743]
[1724605662381,89.64963119,159.32,159.26,1.5715743]
[1724605662586,89.64963119,159.32,159.21,21.5715743]
[1724605662796,89.64963119,159.32,159.22,1.5715743]
[1724605663014,96.17882755,159.32,159.23,1.5715743]
[1724605663314,65.89986282,159.32,159.24,1.5715743]
[1724605663511,65.89986282,159.32,159.21,20.0]
[1724605663512,65.89986282,159.32,159.25,1.5715743]
[1724605663688,65.89986282,159.32,159.21,20.0]
[1724605663883,65.89986282,159.32,159.22,1.57167721]
[1724605664090,90.15344979,159.32,159.23,1.57167721]
[1724605664293,6.2771,159.31,159.24,1.57167783]
[1724605664597,6.2771,159.31,159.2,20.0]
[1724605664598,45.0,159.3,159.25,1.57167783]
[1724605664787,45.0,159.3,159.2,20.0]
[1724605664990,45.0,159.3,159.21,1.5717181]
[1724605665204,45.0,159.3,159.22,1.5717181]
[1724605665410,45.0,159.3,159.23,1.5717181]
[1724605665703,45.0,159.3,159.24,1.5717181]
[1724605665889,45.0,159.3,159.2,20.0]
[1724605666091,45.0,159.3,159.21,1.57176977]
[1724605666279,45.0,159.3,159.22,1.57176977]
[1724605666479,45.0,159.3,159.23,1.57176977]
[1724605666713,45.0,159.3,159.24,1.57176977]
[1724605666921,45.0,159.3,159.2,20.0]
[1724605667089,51.2774,159.3,159.2,20.0]
[1724605667410,1.56993289,159.29,159.21,1.57176979]
[1724605667794,1.56993289,159.29,159.22,1.57176979]
[1724605667989,1.56993289,159.29,159.23,1.57176979]
[1724605668185,1.56993289,159.29,159.24,1.57176979]
[1724605668381,1.56993289,159.29,159.19,20.0]
[1724605668584,1.56993289,159.29,159.2,1.57177151]
[1724605668815,1.56993289,159.29,159.21,1.57177151]
[1724605669015,1.56993289,159.29,159.22,1.57177151]
[1724605669314,1.56993289,159.29,159.23,1.57177151]
[1724605669489,1.56993289,159.29,159.24,1.57177151]
[1724605669692,1.56993289,159.29,159.19,20.0]
[1724605669917,1.56993289,159.29,159.2,1.57180504]
[1724605670087,1.56993289,159.29,159.21,1.57180504]
[1724605670294,1.56993289,159.29,159.22,1.57180616]
[1724605670615,47.18008697,159.28,159.23,1.57180616]
[1724605670796,46.57022273,159.27,159.16,1.57197007]
[1724605670998,1.57023858,159.26,159.17,1.57197007]
[1724605671210,1.57023858,159.26,159.18,1.57197007]
[1724605671413,1.57023858,159.26,159.19,1.57197007]
[1724605671613,1.57023858,159.26,159.2,1.57197007]
[1724605671801,1.57023858,159.26,159.21,1.57197007]
[1724605672117,1.57023858,159.26,159.15,24.25358697]
[1724605672321,1.57023858,159.26,159.16,21.57208141]
[1724605672490,51.2787,159.27,159.17,1.57208141]
[1724605672695,51.2787,159.27,159.18,1.57208141]
[1724605672911,51.2787,159.27,159.19,1.57208141]
[1724605673103,51.2787,159.27,159.2,1.57208141]
[1724605673305,51.2787,159.27,159.16,20.0]
[1724605673598,51.2787,159.27,159.17,1.57202122]
[1724605673801,51.2787,159.27,159.18,1.57202122]
[1724605674019,51.2787,159.27,159.19,1.57202122]
[1724605674202,51.2787,159.27,159.16,20.0]
[1724605674203,45.0,159.27,159.2,1.57202122]
[1724605674410,6.281,159.21,159.17,1.57202122]
[1724605674614,6.281,159.21,159.1,15.9133]
[1724605674615,1.57074531,159.2,159.12,1.57202122]
[1724605674812,1.57074531,159.2,159.13,1.57202122]
[1724605675015,1.57074531,159.2,159.14,1.57202122]
[1724605675223,1.57074531,159.2,159.15,1.57202122]
[1724605675425,1.57074531,159.2,159.16,1.57202122]
[1724605675725,16.6483,159.21,159.11,25.82560819]
[1724605675919,16.6483,159.21,159.12,1.57202122]
[1724605676121,16.6483,159.21,159.13,25.82560819]
[1724605676337,16.6483,159.21,159.14,21.57202122]
[1724605676627,16.6483,159.25,159.15,1.57223393]
[1724605676996,16.6483,159.25,159.14,20.0]
[1724605678603,16.6483,159.25,159.15,1.3953615]
[1724605679121,16.6483,159.25,159.15,25.64894847]
[1724605679326,16.6483,159.25,159.16,21.3953615]
[1724605679524,16.6483,159.25,159.16,20.0]
[1724605681832,16.6483,159.25,159.17,24.25358697]
[1724605682007,16.6483,159.25,159.18,20.0]
[1724605682209,6.4527,159.26,159.19,24.25358697]
[1724605682415,6.4527,159.26,159.2,20.0]
[1724605686942,22.9656,159.29,159.2,20.0]
[1724605687308,70.8236209,159.28,159.16,7.85601161]
[1724605687530,70.8236209,159.28,159.17,20.0]
[1724605688110,70.8236209,159.28,159.16,7.85601161]
[1724605688111,6.2786,159.27,159.16,7.85601161]
[1724605688440,69.25358697,159.28,159.16,7.85601161]
[1724605689236,69.25358697,159.28,159.17,20.0]
[1724605690415,75.53178697,159.28,159.17,20.0]
[1724605691134,45.0,159.28,159.17,44.25358697]
[1724605691305,22.9656,159.29,159.19,24.25358697]
[1724605693108,22.9656,159.29,159.2,20.0]
[1724605695321,22.9656,159.29,159.21,24.25358697]
[1724605698139,22.9656,159.29,159.21,9.70068119]
[1724605709725,22.9656,159.29,159.23,9.70068119]
[1724605714958,22.9656,159.29,159.2,20.0]
[1724605715257,22.9656,159.29,159.21,20.0]
[1724605721948,22.9656,159.29,159.16,7.85601161]
[1724605722149,9.70068119,159.26,159.16,9.70068119]
[1724605722459,1.57029574,159.25,159.16,9.70068119]
[1724605722662,9.70068119,159.26,159.16,9.70068119]
[1724605723580,9.70068119,159.26,159.17,20.0]
[1724605724767,11.27093588,159.26,159.17,20.0]
[1724605725436,9.70068119,159.26,159.17,20.0]
[1724605726048,6.2787,159.27,159.18,9.70068119]
[1724605726249,45.0,159.26,159.18,9.70068119]
[1724605726872,1.57025387,159.25,159.17,20.0]
[1724605727164,15.416,159.25,159.17,20.0]
[1724605732153,16.36468119,159.24,159.14,9.70068119]
[1724605732479,16.36468119,159.24,159.15,20.0]
[1724605732480,61.36468119,159.24,159.15,20.0]
[1724605737075,61.36468119,159.24,159.16,1.57225292]
[1724605737269,61.36468119,159.24,159.17,1.57225292]
[1724605737451,61.36468119,159.24,159.18,1.57225292]
[1724605737652,61.36468119,159.24,159.19,1.57225292]
[1724605737851,61.36468119,159.24,159.2,1.57225292]
[1724605738060,61.36468119,159.24,159.21,1.57225292]
[1724605738276,61.36468119,159.24,159.15,20.0]
[1724605738447,61.36468119,159.24,159.16,1.57224117]
[1724605738650,61.36468119,159.24,159.17,5.52282496]
[1724605738852,61.36468119,159.24,159.18,5.52282496]
[1724605739052,61.36468119,159.24,159.19,1.57224117]
[1724605739382,6.664,159.24,159.2,1.57224117]
[1724605739549,6.664,159.24,159.21,1.57224117]
[1724605739746,6.664,159.24,159.22,1.57224117]
[1724605739964,6.664,159.24,159.23,1.57224117]
[1724605744187,6.664,159.28,159.23,1.57224117]
[1724605744491,6.664,159.28,159.24,11.27292236]
[1724605744795,6.664,159.28,159.17,14.68616967]
[1724605744796,6.664,159.28,159.25,1.57224117]
[1724605744954,6.664,159.28,159.26,1.57224117]
[1724605745160,6.664,159.28,159.27,1.57224117]
[1724605748277,6.664,159.28,159.22,9.70068119]
[1724605748478,6.664,159.28,159.27,1.57155252]
[1724605749187,22.08,159.33,159.27,1.57155252]
[1724605749487,22.08,159.33,159.28,11.27223371]
[1724605749668,22.08,159.33,159.29,1.57155252]
[1724605749866,22.08,159.33,159.3,1.57155252]
[1724605750079,22.08,159.33,159.31,1.57155252]
[1724605750259,22.08,159.33,159.32,1.57155252]
[1724605750459,22.08,159.33,159.28,9.70068119]
[1724605750460,22.08,159.33,159.29,1.57155252]
[1724605750765,22.08,159.33,159.3,1.57155252]
[1724605750982,22.08,159.33,159.31,1.57155252]
[1724605751287,22.08,159.33,159.32,1.57155252]
[1724605751458,22.08,159.33,159.29,1.57155252]
[1724605751659,22.08,159.33,159.3,1.57155252]
[1724605751860,22.08,159.33,159.31,1.57155252]
[1724605752070,22.08,159.33,159.28,9.70068119]
[1724605752287,22.08,159.33,159.29,1.57107038]
[1724605752583,22.08,159.33,159.3,1.57107038]
[1724605752888,22.08,159.33,159.29,1.57107038]
[1724605753185,22.08,159.33,159.3,1.57107038]
[1724605753383,22.08,159.33,159.29,1.57107038]
[1724605753563,22.08,159.33,159.3,1.57107038]
[1724605753767,22.08,159.33,159.29,1.57107038]
[1724605753980,22.08,159.33,159.3,1.57107038]
[1724605754282,15.6829,159.41,159.32,9.70068119]
[1724605754283,16.407,159.38,159.32,9.70068119]
[1724605754493,16.407,159.38,159.32,11.27175157]
[1724605754691,16.407,159.38,159.32,9.70068119]
[1724605757323,16.407,159.38,159.28,38.80272476]
[1724605757324,6.52341789,159.38,159.36,9.70068119]
[1724605757590,15.7559,159.42,159.36,9.70068119]
[1724605757764,22.27788365,159.42,159.36,9.70068119]
[1724605760490,15.7559,159.42,159.38,9.70068119]
[1724605765079,6.4239,159.43,159.38,9.70068119]
[1724605765381,6.2715,159.45,159.38,9.70068119]
[1724605766901,6.2715,159.45,159.37,9.70068119]
[1724605767305,6.2715,159.45,159.32,14.36106751]
[1724605767494,6.2715,159.45,159.37,9.70068119]
[1724605769781,16.6222,159.46,159.39,9.70068119]
[1724605771506,16.6222,159.46,159.41,9.70068119]
[1724605771716,6.52199097,159.48,159.41,9.70068119]
[1724605771879,6.52199097,159.48,159.43,9.70068119]
[1724605773203,16.6222,159.5,159.43,9.70068119]
[1724605773381,23.14339973,159.5,159.43,9.70068119]
[1724605773803,6.52119973,159.5,159.47,9.70068119]
[1724605776881,6.52119973,159.5,159.39,13.99556751]
[1724605777193,6.52119973,159.5,159.42,9.70068119]
[1724605777394,6.52119973,159.5,159.43,20.0]
[1724605777987,6.52119973,159.5,159.44,9.70068119]
[1724605783903,16.6222,159.54,159.48,9.70068119]
[1724605784507,16.6222,159.54,159.46,9.70068119]
[1724605785617,16.6222,159.54,159.48,9.70068119]
[1724605790724,6.1715,159.55,159.5,9.70068119]
[1724605791615,6.1715,159.55,159.48,9.70068119]
[1724605794022,7.73882067,159.55,159.48,9.70068119]
[1724605794210,1.56732067,159.54,159.48,9.70068119]
[1724605796017,12.4392,159.55,159.48,9.70068119]
[1724605798200,6.1715,159.55,159.48,9.70068119]
[1724605798729,6.1715,159.55,159.5,9.70068119]
[1724605799419,6.1715,159.55,159.48,9.70068119]
[1724605800024,6.1715,159.55,159.49,1.56918785]
[1724605800433,6.1715,159.55,159.5,1.56918785]
[1724605800611,6.1715,159.55,159.49,1.56918785]
[1724605800949,6.1715,159.55,159.5,1.56918785]
[1724605801102,6.1715,159.55,159.5,1.56901374]
[1724605801433,16.2323,159.58,159.52,9.70068119]
[1724605801601,7.0678386,159.59,159.56,9.70068119]
[1724605801806,0.8180386,159.59,159.56,9.70068119]
[1724605802121,0.8180386,159.59,159.53,1.56901374]
[1724605802342,0.8180386,159.59,159.55,9.70068119]
[1724605802526,0.8180386,159.59,159.54,1.56901374]
[1724605802910,0.8180386,159.59,159.53,9.70068119]
[1724605803714,0.8180386,159.59,159.53,11.26969493]
[1724605803917,0.8180386,159.59,159.53,9.70068119]
[1724605805121,0.8180386,159.59,159.52,1.56901374]
[1724605805423,0.8180386,159.59,159.53,9.70068119]
[1724605806030,0.8180386,159.59,159.55,9.70068119]
[1724605809417,0.8180386,159.59,159.53,9.70068119]
[1724605810024,0.8180386,159.59,159.55,9.70068119]
[1724605812237,0.8180386,159.59,159.57,9.70068119]
[1724605818225,9.70068119,159.68,159.57,9.70068119]
[1724605818226,22.4005,159.72,159.58,88.10152862]
[1724605818538,6.2619,159.7,159.63,9.70068119]
[1724605819035,6.2623,159.69,159.61,11.26922066]
[1724605819240,6.2623,159.69,159.59,1.56853947]
[1724605819442,6.2618,159.7,159.61,9.70068119]
[1724605819924,6.2613,159.71,159.63,9.70068119]
[1724605820112,22.4005,159.72,159.65,9.70068119]
[1724605822243,6.2616,159.71,159.61,1.56853947]
[1724605822431,6.2616,159.71,159.58,23.10152862]
[1724605822432,28.6614,159.72,159.63,9.70068119]
[1724605822616,22.4005,159.72,159.63,9.70068119]
[1724605822818,22.4005,159.72,159.65,9.70068119]
[1724605826537,0.8180386,159.75,159.67,9.70068119]
[1724605826845,0.8180386,159.75,159.69,9.70068119]
[1724605828354,0.8180386,159.75,159.71,9.70068119]
[1724605830643,0.8180386,159.75,159.66,21.9096]
[1724605830847,7.0778386,159.75,159.67,20.0]
[1724605831642,0.8180386,159.75,159.68,9.70068119]
[1724605834243,0.8180386,159.75,159.7,9.70068119]
[1724605841931,0.8180386,159.75,159.67,29.70068119]
[1724605842132,0.8180386,159.75,159.69,9.70068119]
[1724605842546,0.8180386,159.75,159.71,9.70068119]
[1724605846565,0.8180386,159.75,159.7,9.70068119]
[1724605848030,0.8180386,159.75,159.68,7.77631751]
[1724605848239,0.8180386,159.75,159.69,20.0]
[1724605848959,0.8180386,159.75,159.7,54.70068119]
[1724605849162,0.8180386,159.75,159.7,9.70068119]
[1724605851938,16.27498119,159.73,159.61,15.6285]
[1724605852139,6.5743,159.73,159.62,9.70068119]
[1724605852370,6.5743,159.73,159.64,9.70068119]
[1724605853245,6.5743,159.73,159.65,45.0]
[1724605853877,6.5743,159.73,159.68,9.70068119]
[1724605855439,6.5743,159.73,159.66,9.70068119]
[1724605855642,6.5743,159.73,159.67,65.0]
[1724605858274,6.5743,159.73,159.62,24.11776217]
[1724605858476,6.5743,159.73,159.63,20.0]
[1724605859185,12.8348,159.73,159.63,20.0]
[1724605859365,6.5743,159.73,159.63,20.0]
[1724605860463,6.5743,159.73,159.64,45.0]
[1724605860666,12.8351,159.73,159.65,20.0]
[1724605861169,12.8351,159.73,159.62,20.0]
[1724605861347,12.8351,159.73,159.63,48.93762166]
[1724605861547,12.8351,159.73,159.64,20.0]
[1724605862077,6.5743,159.73,159.65,3.93751794]
[1724605862553,6.5743,159.73,159.65,28.05528011]
[1724605862751,6.5743,159.73,159.67,24.11776217]
[1724605862944,6.5743,159.73,159.68,45.0]
[1724605863559,6.5743,159.73,159.69,3.93515034]
[1724605864151,6.5743,159.73,159.69,5.31787958]
[1724605865675,16.145,159.74,159.69,29.43564175]
[1724605865978,16.145,159.74,159.7,50.31787958]
[1724605866185,16.145,159.74,159.69,24.11776217]
[1724605866388,16.145,159.74,159.7,25.31790234]
[1724605866594,16.145,159.74,159.7,20.0]
[1724605866779,16.145,159.74,159.71,3.93519312]
[1724605867682,16.145,159.74,159.69,5.31785526]
[1724605867883,16.145,159.74,159.7,23.93519312]
[1724605868061,16.145,159.74,159.71,3.93468391]
[1724605868263,16.145,159.74,159.69,11.91857003]
[1724605868557,16.145,159.74,159.7,23.93468391]
[1724605868756,16.145,159.74,159.71,3.93468391]
[1724605869182,16.145,159.74,159.69,25.31736781]
[1724605869396,16.145,159.74,159.7,5.31736781]
[1724605869693,16.145,159.74,159.69,20.0]
[1724605869913,16.145,159.74,159.7,1.38256575]
[1724605870187,16.145,159.74,159.67,20.0]
[1724605870188,6.53,159.73,159.67,20.0]
[1724605870395,6.53,159.73,159.71,3.93436438]
[1724605870688,6.53,159.73,159.65,10.5350625]
[1724605870893,6.53,159.73,159.66,10.5350625]
[1724605871071,6.53,159.73,159.67,10.5350625]
[1724605871386,6.53,159.73,159.68,10.5350625]
[1724605871586,6.53,159.73,159.63,24.11776217]
[1724605871587,6.53,159.73,159.69,3.93436438]
[1724605871890,6.53,159.73,159.7,3.93436438]
[1724605872076,6.53,159.73,159.66,10.53695289]
[1724605872273,8.0953543,159.73,159.67,10.53647286]
[1724605872461,8.0953543,159.73,159.68,3.93577474]
[1724605872667,8.0953543,159.73,159.62,7.97398735]
[1724605872668,32.21311647,159.73,159.62,7.97398735]
[1724605872864,22.0779,159.72,159.63,10.54457658]
[1724605873172,22.347,159.7,159.64,10.54457658]
[1724605873494,24.11776217,159.69,159.59,6.60665044]
[1724605873713,69.11776217,159.69,159.6,10.54529052]
[1724605873867,75.37986217,159.69,159.61,10.54529052]
[1724605874063,75.37986217,159.69,159.62,10.54529052]
[1724605874300,75.37986217,159.69,159.63,3.93864008]
[1724605874596,75.37986217,159.69,159.64,3.93864008]
[1724605874894,75.37986217,159.69,159.61,6.60665044]
[1724605875091,75.37986217,159.69,159.62,10.54533944]
[1724605875284,75.37986217,159.69,159.63,3.938689]
[1724605875480,75.37986217,159.69,159.6,6.60665044]
[1724605875682,75.37986217,159.69,159.61,10.54539386]
[1724605875881,75.37986217,159.69,159.62,3.93874342]
[1724605876080,75.37986217,159.69,159.63,3.93874342]
[1724605876298,75.37986217,159.69,159.61,6.60665044]
[1724605876485,75.37986217,159.69,159.59,6.60665044]
[1724605876690,75.37986217,159.69,159.6,23.93873881]
[1724605876905,75.37986217,159.69,159.61,3.93873881]
[1724605877201,15.817,159.68,159.62,3.93869389]
[1724605877379,15.817,159.68,159.61,3.93869389]
[1724605877784,15.817,159.68,159.62,3.93869389]
[1724605877997,9.65662205,159.67,159.61,3.93869389]
[1724605878208,9.65662205,159.67,159.62,3.93869389]
[1724605878390,9.65662205,159.67,159.61,3.93869389]
[1724605878784,11.22264144,159.67,159.6,10.54660269]
[1724605878993,9.65662205,159.67,159.6,10.54660269]
[1724605879292,15.817,159.68,159.61,3.93869389]
[1724605879499,25.47362205,159.68,159.61,3.93869389]
[1724605879885,31.73612205,159.68,159.61,3.93869389]
[1724605880187,1.56605309,159.67,159.6,3.93869389]
[1724605881079,31.73612205,159.68,159.6,3.93869389]
[1724605881797,6.2629,159.67,159.6,3.93869389]
[1724605881989,6.53,159.65,159.59,3.93869389]
[1724605882191,6.53,159.65,159.57,23.93869389]
[1724605882401,6.53,159.65,159.58,3.93869389]
[1724605882577,6.53,159.65,159.58,10.54731557]
[1724605882776,6.53,159.65,159.58,3.93896402]
[1724605884599,6.53,159.65,159.58,13.59558607]
[1724605884774,15.817,159.68,159.62,9.65662205]
[1724605886610,15.817,159.68,159.63,1.56769835]
[1724605886790,15.817,159.68,159.64,1.56769835]
[1724605886990,15.817,159.68,159.65,1.56769835]
[1724605887306,15.817,159.68,159.63,1.56769835]
[1724605887480,15.817,159.68,159.64,1.56769835]
[1724605887801,15.817,159.68,159.65,1.56769835]
[1724605888005,15.817,159.68,159.63,1.56769835]
[1724605888303,15.817,159.68,159.64,1.56769835]
[1724605888484,15.817,159.68,159.65,1.56769835]
[1724605889100,15.817,159.68,159.66,1.56769835]
[1724605889279,15.817,159.68,159.64,9.65662205]